Workbook

Sheet Savings
D2: Investments & Loans ©Rocketwaveuk. | J2: Locked
O4: Interest Rate >>>> | R4: 0.0025
D5: Yearly Interest % | E5: 0.0275 | O5: Years >>>> | R5: =Q14 -> 5
D6: =IF(E6=E5,"Yearly Rate Set","Period Rate") -> Period Rate | E6: =E5/E7 -> 0.002291666667 | G6: THESE COLOURED CELLS ARE VARIABLES THAT CAN BE CHANGED | O6: Loan Amount >>>> | R6: 100000
D7: Compounded By | E7: 12 | O7: Monthly payment >>>> | R7: =PMT(R4/12,R5*12,-R6) -> 1677.278637
D8: Your Investment | E8: 10000 | O8: Total Paid >>>> | R8: =R7*R5*12 -> 100636.7182
D9: Number Years | E9: 5 | O9: 1 | P9: 2 | Q9: 5
D10: =IF(B12="Investment Return","Expected Profit","Investment Return") -> Investment Return | E10: =IF(B12="Total Investment",(E8*(1+E6)^(E9*E7))-E8,(E8*(1+E6)^(E9*E7))) -> 11472.2122
B12: Investment Total | D12: ="Saving Over "&D13&" Year Steps - At "&(E5*100)&"% Annual Interest Rates - And Compounded At "&(12/E7)&" Monthly Periods" -> Saving Over 1 Year Steps - At 2.75% Annual Interest Rates - And Compounded At 1 Monthly Periods | O12: Payments | Q12: =IF(O12="Payments",">>>>> Years Below >>>>> Monthly Payments",">>>>> Years Below >>>>> Total Amount Paid") -> >>>>> Years Below >>>>> Monthly Payments
B13: Annual % | C13: =IF(B12="Investment Total",(E8*(1+E6)^(E9*E7)),(E8*(1+E6)^(E9*E7))-E8) -> 11472.2122 | D13: 1 | E13: =D13+D13 -> 2 | F13: =E13+D13 -> 3 | G13: =F13+D13 -> 4 | H13: =G13+D13 -> 5 | I13: =H13+D13 -> 6
B14: =E5-2% -> 0.0075 | C14: =IF((B14/$E$7)<0.001,0,(B14/$E$7)) -> 0 | D14: 10000 | E14: 10000 | F14: 10000 | G14: 10000 | H14: 10000 | I14: 10000 | P14: =IF(O12="Payments",R7,R8) -> 1677.278637 | Q14: 5 | R14: =Q14+Q14 -> 10 | S14: =R14+Q14 -> 15 | T14: =S14+Q14 -> 20 | U14: =T14+Q14 -> 25 | V14: =U14+Q14 -> 30 | W14: =V14+Q14 -> 35 | X14: =W14+Q14 -> 40 | Y14: =X14+Q14 -> 45 | Z14: =Y14+Q14 -> 50 | AA14: =Z14+Q14 -> 55 | AB14: =AA14+Q14 -> 60
B15: =E5-1.75% -> 0.01 | C15: =IF((B15/$E$7)<0.001,0,(B15/$E$7)) -> 0 | D15: 10000 | E15: 10000 | F15: 10000 | G15: 10000 | H15: 10000 | I15: 10000 | O15: Interest Rates | P15: =R4 -> 0.0025 | Q15: 1677.278637 | R15: 843.8802003 | S15: 566.0951864 | T15: 427.2135275 | U15: 343.8932096 | V15: 288.3535612 | W15: 248.68858 | X15: 218.9452647 | Y15: 195.8163923 | Z15: 177.3176287 | AA15: 162.1862157 | AB15: 149.5803146
B16: =E5-1.5% -> 0.0125 | C16: 0.001041666667 | D16: 10125.71864 | E16: 10253.01779 | F16: 10381.91734 | G16: 10512.43739 | H16: 10644.59832 | I16: 10778.42076 | P16: =R4+0.25% -> 0.005 | Q16: 1687.933985 | R16: 854.5138334 | S16: 576.7649596 | T16: 437.9338916 | U16: 354.6699308 | V16: 299.1895072 | W16: 259.5853738 | X16: 229.903904 | Y16: 206.8375254 | Z16: 188.4016923 | AA16: 173.3335099 | AB16: 160.7910469
B17: =E5-1.25% -> 0.015 | C17: 0.00125 | D17: 10151.03556 | E17: 10304.35229 | F17: 10459.98465 | G17: 10617.96762 | H17: 10778.33668 | I17: 10941.12789 | P17: =R4+0.5% -> 0.0075 | Q17: 1709.374745 | R17: 876.0412137 | S17: 598.4945145 | T17: 459.894307 | U17: 376.8724542 | V17: 321.6395204 | W17: 282.2856989 | X17: 252.8560444 | Y17: 230.0422171 | Z17: 211.8591803 | AA17: 197.0436997 | AB17: 184.7535926
B18: =E5-1% -> 0.0175 | C18: 0.001458333333 | D18: 10176.41049 | E18: 10355.93305 | F18: 10538.62257 | G18: 10724.53493 | H18: 10913.72698 | I18: 11106.25657 | P18: =R4+0.75% -> 0.01 | Q18: 1741.860774 | R18: 908.9815958 | S18: 632.0613471 | T18: 494.1288127 | U18: 411.7891161 | V18: 357.2434474 | W18: 318.577598 | X18: 289.8340965 | Y18: 267.7029218 | Z18: 250.1977904 | AA18: 236.0544691 | AB18: 224.429933
B19: =$E$5-0.75% -> 0.02 | C19: 0.001666666667 | D19: 10201.84356 | E19: 10407.7612 | F19: 10617.83515 | G19: 10832.14931 | H19: 11050.78927 | I19: 11273.84233 | P19: =R4+1% -> 0.0125 | Q19: 1785.781033 | R19: 954.1103063 | S19: 678.6216374 | T19: 542.1663067 | U19: 461.3108552 | V19: 408.241181 | W19: 371.0345826 | X19: 343.7277937 | Y19: 323.0063446 | Z19: 306.8803192 | AA19: 294.0824343 | AB19: 283.7670833
B20: =$E$5-0.5% -> 0.0225 | C20: 0.001875 | D20: 10227.33488 | E20: 10459.83787 | F20: 10697.62646 | G20: 10940.82082 | H20: 11189.54383 | I20: 11443.92119 | P20: =R4+1.25% -> 0.015 | Q20: 1841.652206 | R20: 1012.451382 | S20: 739.6879256 | T20: 605.9803293 | U20: 527.8368403 | V20: 477.4152955 | W20: 442.774741 | X20: 417.9384694 | Y20: 399.5817627 | Z20: 385.7070023 | AA20: 375.0414189 | AB20: 366.7359132
B21: =$E$5-0.25% -> 0.025 | C21: 0.002083333333 | D21: 10252.88457 | E21: 10512.1642 | F21: 10778.00061 | G21: 11050.55962 | H21: 11330.01122 | I21: 11616.52972 | P21: =R4+1.5% -> 0.0175 | Q21: 1910.116217 | R21: 1085.26278 | S21: 817.0834546 | T21: 687.8873079 | U21: 614.0874923 | V21: 567.7890013 | W21: 537.0162792 | X21: 515.7702813 | Y21: 500.7138796 | Z21: 489.8454735 | AA21: 481.8954046 | AB21: 476.0234589
B22: =$E$5 -> 0.0275 | C22: =B22/$E$7 -> 0.002291666667 | D22: 10278.49276 | E22: 10564.74134 | F22: 10858.96174 | G22: 11161.37596 | H22: 11472.2122 | I22: 11791.70501 | P22: =R4+1.75% -> 0.02 | Q22: 1991.936135 | R22: 1174.010412 | S22: 912.862881 | T22: 790.3759849 | U22: 722.8068641 | V22: 682.1762801 | W22: 656.467245 | X22: 639.6719217 | Y22: 628.4697657 | Z22: 620.8943933 | AA22: 615.7237165 | AB22: 612.1719452
B23: =$E$5+0.25% -> 0.03 | C23: 0.0025 | D23: 10304.15957 | E23: 10617.57044 | F23: 10940.51401 | G23: 11273.28021 | H23: 11616.16782 | I23: 11969.48468 | P23: =R4+2% -> 0.0225 | Q23: 2087.989829 | R23: 1280.32722 | S23: 1029.19229 | T23: 915.8668338 | U23: 856.3818427 | V23: 822.6754255 | W23: 802.7443203 | X23: 790.6605646 | Y23: 783.2231972 | Z23: 778.6030665 | AA23: 775.7165054 | AB23: 773.9065737
B24: =$E$5+0.5% -> 0.0325 | C24: 0.002708333333 | D24: 10329.88512 | E24: 10670.65266 | F24: 11022.66161 | G24: 11386.28281 | H24: 11761.89933 | I24: 12149.90689 | P24: =R4+2.25% -> 0.025 | Q24: 2199.260737 | R24: 1405.95444 | S24: 1168.18981 | T24: 1066.429632 | U24: 1016.468965 | V24: 990.2914331 | W24: 976.1073325 | X24: 968.2818661 | Y24: 963.9214897 | Z24: 961.4784452 | AA24: 960.1054207 | AB24: 959.3324242
B25: =$E$5+0.75% -> 0.035 | C25: 0.002916666667 | D25: 10355.66953 | E25: 10723.98914 | F25: 11105.40876 | G25: 11500.39431 | H25: 11909.42829 | I25: 12333.01037 | P25: =R4+2.5% -> 0.0275 | Q25: 2326.825085 | R25: 1552.66435 | S25: 1331.741388 | T25: 1243.520811 | U25: 1203.761043 | V25: 1184.871751 | W25: 1175.673281 | X25: 1171.140062 | Y25: 1168.892828 | Z25: 1167.775573 | AA25: 1167.219306 | AB25: 1166.942148
B26: =$E$5+1% -> 0.0375 | C26: 0.003125 | D26: 10381.51293 | E26: 10777.58106 | F26: 11188.75971 | G26: 11615.62536 | H26: 12058.77648 | I26: 12518.83439 | P26: =R4+2.75% -> 0.03 | Q26: 2471.835005 | R26: 1722.167295 | S26: 1521.321069 | T26: 1447.819562 | U26: 1417.997054 | V26: 1405.395568 | W26: 1399.97978 | X26: 1397.635279 | Y26: 1396.617157 | Z26: 1396.174428 | AA26: 1395.981793 | AB26: 1395.897955
B27: =$E$5+1.25% -> 0.04 | C27: 0.003333333333 | D27: 10407.41543 | E27: 10831.42959 | F27: 11272.71875 | G27: 11731.9867 | H27: 12209.96594 | I27: 12707.41879 | P27: =R4+3% -> 0.0325 | Q27: 2635.497203 | R27: 1916.010177 | S27: 1737.854756 | T27: 1679.222758 | U27: 1658.214641 | V27: 1650.460937 | W27: 1647.568014 | X27: 1646.4843 | Y27: 1646.07772 | Z27: 1645.925095 | AA27: 1645.86779 | AB27: 1645.846272
B28: =$E$5+1.5% -> 0.0425 | C28: 0.003541666667 | D28: 10433.37716 | E28: 10885.5359 | F28: 11357.29017 | G28: 11849.48919 | H28: 12363.01899 | I28: 12898.804 | P28: =R4+3.25% -> 0.035 | Q28: 2819.047109 | R28: 2135.477983 | S28: 1981.663459 | T28: 1937.003331 | U28: 1923.129833 | V28: 1918.730802 | W28: 1917.326915 | X28: 1916.877964 | Y28: 1916.734298 | Z28: 1916.688315 | AA28: 1916.673596 | AB28: 1916.668885
B29: =$E$5+1.75% -> 0.045 | C29: 0.00375 | D29: 10459.39825 | E29: 10939.90118 | F29: 11442.47832 | G29: 11968.14377 | H29: 12517.95821 | I29: 13093.03102 | P29: =R4+3.5% -> 0.0375 | Q29: 3023.718913 | R29: 2381.512689 | S29: 2252.503631 | T29: 2220.072944 | U29: 2211.48683 | V29: 2209.182829 | W29: 2208.562347 | X29: 2208.395085 | Y29: 2208.349985 | Z29: 2208.337824 | AA29: 2208.334544 | AB29: 2208.33366
P30: =R4+3.75% -> 0.04 | Q30: 3250.712357 | R30: 2654.663546 | S30: 2549.693914 | T30: 2527.256344 | U30: 2522.272641 | V30: 2521.156357 | W30: 2520.905854 | X30: 2520.849616 | Y30: 2520.836989 | Z30: 2520.834154 | AA30: 2520.833518 | AB30: 2520.833375
P31: =R4+4% -> 0.0425 | Q31: 3501.157737 | R31: 2955.078535 | S31: 2872.292101 | T31: 2857.498878 | U31: 2854.781852 | V31: 2854.280329 | W31: 2854.18767 | X31: 2854.170548 | Y31: 2854.167384 | Z31: 2854.166799 | AA31: 2854.166691 | AB31: 2854.166671
